Cogmind - Beta 9.6 @@@ ROGUE MODE // 2020.05.09 @ 16:55:13 Player: Teratos Result: Self-destructed Performance ------------- Evolutions (1) 500 Regions Visited (2) 400 Robots Destroyed (9) 45 Value Destroyed (105) 105 Prototype IDs (0) 0 Alien Tech Used (0) 0 Bonus (0) 0 TOTAL SCORE: 1050 Bonus ------- None Cogmind --------- Core Integrity 341/400 Matter 295/300 Energy 125/125 System Corruption 1% Temperature Cool (133) Movement Flying (37) Location -9/Materials Parts ------- > --- POWER (1) -------- Light Ion Engine > --- PROPULSION (3) --- Flight Unit Flight Unit > --- UTILITY (3) ------ (None) > --- WEAPON (2) ------- Beam Rifle > --- INVENTORY (4) ---- Medium Battery (199) Medium Battery (166) Light EM Pulse Cannon Grenade Launcher Peak State ------------ > --- POWER ------------ Light Ion Engine > --- PROPULSION ------- Flight Unit Flight Unit > --- UTILITY ---------- Medium Battery > --- WEAPON ----------- Beam Rifle Light EM Pulse Cannon > --- INVENTORY -------- Medium Battery Small Laser Grenade Launcher [Rating: 8] Favorites ----------- Power Light Ion Engine Engine Light Ion Engine Propulsion Light Treads Treads Light Treads Flight Unit Flight Unit Utility Medium Battery Storage Medium Battery Protection Power Shielding Weapon Small Laser Energy Gun Small Laser Energy Cannon Light EM Pulse Cannon Build | -11 -10 -9 ------- Run | Scr Mat Mat Slots Evolved 2 | . . 2 Power . | . . . Propulsion 1 | . . 1 Utility 1 | . . 1 Weapon . | . . . Parts Attached 20 | 5 5 10 Power 2 | 1 1 . Engine 2 | 1 1 . Core . | . . . Reactor . | . . . Propulsion 4 | 2 2 . Treads 2 | 2 . . Leg . | . . . Wheel . | . . . Hover . | . . . Flight 2 | . 2 . Utility 5 | . 2 3 Device . | . . . Storage 4 | . 1 3 Processor . | . . . Hackware . | . . . Protection 1 | . 1 . Artifact . | . . . Weapon 9 | 2 . 7 Energy Gun 7 | 2 . 5 Energy Cannon 2 | . . 2 Ballistic Gun . | . . . Ballistic Cannon . | . . . Launcher . | . . . Special Weapon . | . . . Impact Weapon . | . . . Slashing Weapon . | . . . Piercing Weapon . | . . . Special Melee Weapon . | . . . Unidentified Prototypes . | . . . Parts Lost 1 | . . 1 Power . | . . . Propulsion . | . . . Utility . | . . . Weapon 1 | . . 1 Highest Loss Streak 1 | . . 1 Average Slot Usage (%) 75 | . 92 56 Engine 12 | . 14 11 Treads 11 | . 22 . Flight 13 | . 4 22 Storage 6 | . 11 2 Protection 5 | . 10 . Energy Gun 22 | . 28 17 Energy Cannon 1 | . . 3 Naked Turns . | . . . Heaviest Build 11 | 8 11 11 Greatest Support 40 | 40 40 8 Greatest Overweight (x) 2 | . 2 1 Average Overweight (x) . | . . . Largest Inventory Capacity 4 | 4 4 4 Average Capacity 4 | 4 4 4 Most Carried 4 | . 4 4 Average Carried 2 | . 2 3 Final Capacity 4 | 4 4 4 Final Carried 4 | . 4 4 Class Distribution -------------------- 80% | Mutant 19% | Scavenger-Mutant Dominant Class ---------------- Mutant | -10/Materials Scavenger-Mutant | -9/Materials Resources | -11 -10 -9 ----------- Run | Scr Mat Mat Matter Collected 390 | 147 153 90 Remotely . | . . . Salvage Created 306 | 69 147 90 Parts 23 | . 13 10 Haulers Intercepted . | . . . Recyclers Shooed 1 | . 1 . Parts Field Recycled . | . . . Retrieved Matter . | . . . Parts Self-Destructed . | . . . Prevented . | . . . Kills | -11 -10 -9 ------- Run | Scr Mat Mat Combat Hostiles Destroyed 4 | . 3 1 Guns 3 | . 3 . Cannons 1 | . . 1 Classes Destroyed 5 | 1 2 2 Worker 2 | . 1 1 Recycler 2 | 1 1 . Operator 1 | . . 1 Swarmer 3 | . 3 . Sentry 1 | . . 1 Best Kill Streak 3 | 1 3 2 Combat Bots Only 3 | . 3 1 Max Kills in Single Turn 1 | 1 1 1 Gunslinging . | . . . Exploded . | . . . Melee . | . . . Uniques/NPCs Destroyed . | . . . Combat | -11 -10 -9 -------- Run | Scr Mat Mat Damage Taken 270 | . 75 195 Core 79 | . 20 59 Absorbed by Shields . | . . . Core Remaining (%) 96 | 100 92 . Volleys Fired 29 | 6 9 14 Largest 2 | 2 2 2 Hottest 106 | 90 90 106 Shots Fired 54 | 11 18 25 Gun 49 | 11 18 20 Cannon 5 | . . 5 Launcher . | . . . Special . | . . . Kinetic . | . . . Thermal 49 | 11 18 20 Explosive . | . . . Electromagnetic 5 | . . 5 Robot Hit Streak 6 | 5 3 6 Robot Miss Streak 6 | 1 2 6 Penetration Max . | . . . Secondary Targets . | . . . Shots Hit Robots 26 | 8 9 9 Core Hits 13 | 2 6 5 Critical Hits . | . . . Critical Kills . | . . . Critical Parts Destroyed . | . . . Melee Attacks . | . . . Impact . | . . . Slashing . | . . . Piercing . | . . . Sneak Attacks . | . . . Combat Hostiles . | . . . Follow-up Attacks . | . . . Damage Inflicted 366 | 84 106 176 Guns 288 | 84 106 98 Cannons 78 | . . 78 Explosions . | . . . Melee . | . . . Ramming . | . . . Kinetic . | . . . Thermal 288 | 84 106 98 Explosive . | . . . Electromagnetic 78 | . . 78 Impact . | . . . Slashing . | . . . Piercing . | . . . Highest Corruption 1 | . . 1 Average Corruption 1 | . . 1 Corruption Purged . | . . . Overload Shots . | . . . Overflow Damage . | . . . Projectiles . | . . . Explosions . | . . . Melee . | . . . Knockbacks . | . . . Impact . | . . . Kinetic . | . . . Secondary . | . . . Self-Inflicted Damage . | . . . Shots . | . . . Rammed . | . . . Targets Rammed . | . . . Kicked . | . . . Crushed . | . . . Highest Temperature 160 | 160 150 133 Average Temperature 58 | 85 61 45 Received Heat Transfer 24 | . . 24 Siege Activations . | . . . Robots Corrupted . | . . . Combat Hostiles . | . . . Parts Fried . | . . . Impact Corruptions . | . . . Robots Melted . | . . . Combat Hostiles . | . . . Parts Melted 1 | 1 . . Heat Transferred 744 | 235 273 236 Parts Sabotaged . | . . . Parts Stolen . | . . . Parts Stripped . | . . . Power Chain Reactions . | . . . Missiles Intercepted . | . . . Alert | -11 -10 -9 ------- Run | Scr Mat Mat Peak Influence 122 | 5 90 122 Average Influence 41 | 2 28 76 Maximum Alert Level . | . . . Low Security (%) 100 | 100 100 100 Level 1 . | . . . Level 2 . | . . . Level 3 . | . . . Level 4 . | . . . Level 5 . | . . . High Security . | . . . Max Security . | . . . Squads Dispatched 3 | . . 3 Investigation 1 | . . 1 Extermination . | . . . Reinforcement 2 | . . 2 Assault . | . . . Garrison . | . . . Intercept . | . . . Construction Impeded . | . . . Haulers Reinforced . | . . . Stealth | -11 -10 -9 --------- Run | Scr Mat Mat Distress Signals . | . . . Communications Jammed . | . . . Distress Signals . | . . . Times Spotted 13 | . 3 10 Peak Tracking Total 7 | . 4 7 Tactical Retreats . | . . . Traps | -11 -10 -9 ------- Run | Scr Mat Mat Traps Triggered . | . . . Indirectly . | . . . Trap Hack Attempts . | . . . Triggered . | . . . Disarmed . | . . . Reprogrammed . | . . . Reused . | . . . Traps Extracted . | . . . Installed . | . . . Triggered . | . . . Machines | -11 -10 -9 ---------- Run | Scr Mat Mat Machines Disabled . | . . . Max in Single Turn . | . . . Machines Sabotaged . | . . . Garrisons Compromised . | . . . Overloaded Fab Kills . | . . . Fab Network Shutdowns . | . . . Hacking | -11 -10 -9 --------- Run | Scr Mat Mat Machines Accessed 4 | . 2 2 Terminals 3 | . 2 1 Fabricators . | . . . Repair Stations . | . . . Recycling Units . | . . . Scanalyzers 1 | . . 1 Garrison Access . | . . . Total Hacks 16 | . 9 7 Successful 8 | . 4 4 Failed 8 | . 5 3 Catastrophic . | . . . Database Lockouts . | . . . Manual . | . . . Terminals 13 | . 9 4 Fabricators . | . . . Repair Stations . | . . . Recycling Units . | . . . Scanalyzers 3 | . . 3 Garrison Access . | . . . Terminal Hacks 5 | . 4 1 Scanalyzer Index 1 | . 1 . Alert Level 1 | . 1 . Locate Traps 1 | . . 1 Investigation Status 1 | . 1 . Recall Investigation 1 | . 1 . Fabricator Hacks . | . . . Repair Station Hacks . | . . . Recycling Unit Hacks . | . . . Scanalyzer 3 | . . 3 Insert Component 2 | . . 2 Analyze 1 | . . 1 Garrison Access Hacks . | . . . Unauthorized Hacks . | . . . Terminals . | . . . Fabricators . | . . . Repair Stations . | . . . Recycling Units . | . . . Scanalyzers . | . . . Garrison Access . | . . . Data Cores Recovered . | . . . Used . | . . . Hacking Detections 4 | . 2 2 Full Trace Events 3 | . 1 2 Feedback Events 1 | . . 1 Corruption 1 | . . 1 Feedback Blocked . | . . . Robot Schematics Acquired . | . . . Robots Built . | . . . Matter . | . . . Time . | . . . Total Robot Build Rating . | . . . Part Schematics Acquired 1 | . . 1 Parts Built . | . . . Matter . | . . . Time . | . . . Total Part Build Rating . | . . . Parts Repaired . | . . . Time . | . . . Parts Recycled . | . . . Recycled Matter . | . . . Retrieved Matter . | . . . Retrieved Components . | . . . Parts Scanalyzed 1 | . . 1 Part Schematics Acquired 1 | . . 1 Parts Damaged . | . . . Bothacking | -11 -10 -9 ------------ Run | Scr Mat Mat Used RIF Installer . | . . . Robots Hacked . | . . . Non-combat . | . . . Combat . | . . . Robot Hacks Applied . | . . . Relay Couplers Released . | . . . Robots Rewired . | . . . Allies Hacked . | . . . Hacks Repelled . | . . . Allies | -11 -10 -9 -------- Run | Scr Mat Mat Total Allies . | . . . Largest Group . | . . . Highest-Rated Group . | . . . Highest-Rated Ally . | . . . Total Orders . | . . . Ally Attacks . | . . . Total Damage . | . . . Kills . | . . . Allies Corrupted . | . . . Allies Melted . | . . . Intel | -11 -10 -9 ------- Run | Scr Mat Mat Robot Analysis Total . | . . . Derelict Logs Recovered . | . . . Drone Launches . | . . . Drone Recoveries . | . . . Exploration | -11 -10 -9 ------------- Run | Scr Mat Mat Turns Passed 360 | 70 157 133 Spaces Moved 300 | 33 110 157 Core 7 | 6 1 . Treads 82 | 27 55 . Legs . | . . . Wheels . | . . . Hover . | . . . Flight 211 | . 54 157 Fastest Speed 37 | 50 37 37 Average Speed 76 | 140 106 41 Slowest Speed 200 | 160 200 117 Overloaded Moves . | . . . Propulsion Burnouts . | . . . Robots Hopped 2 | . . 2 Cave-ins Triggered . | . . . Exploration Rate (%) 14 | 4 19 19 Regions Visited 2 Branch Regions . Pre-discovered Areas . | . . . Known Exits Taken . | . . . Unknown Exits Taken 2 | 1 1 . Scrap Searched . | . . . Spaces Dug . | . . . Terrain Destroyed . | . . . Melee . | . . . Projectile . | . . . AOE . | . . . Actions | -11 -10 -9 --------- Run | Scr Mat Mat Total 373 | 43 131 199 Wait 9 | . . 9 Move 294 | 32 109 153 Hop 2 | . . 2 Pick Up 7 | . 4 3 Fast Attach 10 | 5 5 . Attach 6 | . . 6 Detach 4 | . . 4 Swap 4 | . . 4 Drop 8 | . 4 4 Fire 29 | 6 9 14 Melee . | . . . Ram . | . . . Kick . | . . . Crush . | . . . Escape Stasis . | . . . Rewire . | . . . Trap . | . . . Miscellaneous . | . . . Route ------- -11/Scrapyard -10/Materials -9/Materials (discovered 1 exit: [*Min]) History --------- Turn | Location | Event 47 | -11/Scrapyard | Discovered new exit (range 16) 71 | -11/Scrapyard | Entered Materials 208 | -10/Materials | Discovered new exit (range 13) 228 | -10/Materials | Entered another Materials area 228 | -9/Materials | Evolved 2 slots: Propulsion x1, Utility x1 328 | -9/Materials | Discovered new exit (range 15) 361 | -9/Materials | Self-destructed Last Messages --------------- 00300_ Dropped Med. Laser. 00303_ Acquired 6 matter. 00324_ O-16 Technician destroyed. 00328_ EXIT=FOUND 00328_ K-01 Serf collects debris. 00332_ ALERT: Hostiles spotted, dispatching reinforcements to Terminal M010. 00332_ K-01 Serf collects debris. 00336_ Acquired 14 matter. 00337_ K-01 Serf collects debris. 00343_ R-06 Scavenger collects Hover Unit. 00347_ Connecting with Terminal... >>Traps(Locate) Found 6 traps in 1 array: 6x Alarm Trap Map updated. Feedback: System corruption (+1%). 00347_ R-06 Scavenger collects Lgt. Ion Engine. 00358_ K-01 Serf collects debris. 00360_ Sml. Laser destroyed. Map ----- +----------------------------------------------------+ | #???"""??# #????????????????????????? | | #???"""??# """#????????????????????????? | | = #???? ??# """#????????????????????????? | | ! #??###+### """#????????????????????????? | | #+######## # #????????????????????????? | | ! ####+###### ##????????????????????? | | #?# #####????????????????? | | ### ?????????????? | | ######+### #########????????????? | | # #?# #### #????????????????????? | | #"S #?# #??? #????????????????????? | | #""" #?# T """ #??? #????????????????????? | | # "" !#?# """ #??? +????????????????????? | | # = [### ] """ #??? #????????????????????? | | # =* + #??? s#????????????????????? | | ##### #### #??? #????????????????????? | | #???#######/#########??? s #??##????????????????? | | ##??????# #?????#k #?? ????????????????? | | ????????# """"""" #?????# #? ?????????????????? | | ????????# """"""" #?????# # ??????????????????? | | ????????# """"""" #?????#o # ???????????????????? | | ????????# """"""" #?????# ;????????????????????? | | ????????# """"""" #?????Tss #????????????????????? | | ????????# ####### #????????????????????? | | ????????# ! #[ # #????????????????????? | | ????????########+## k @g #????????????????????? | | ???????????????# ## T ### #????????????????????? | | ???????????????# ## #????????????????????????? | | ???????????????# ## #????????????????????????? | | ???????????##### ### ##????????????????????????? | | ??????????##!!## ### #?????????????????????????? | | ??????????#! ## #?????????????????????????? | | ??????????#! ## #?????????????????????????? | | ??????????#! ##*! #?????????????????????????? | | ??????????#! =$ #?????????????????????????? | | ??????????##!! / #?????????????????????????? | | ???????????#### #?????????????????????????? | | ??????????????# ######?????????????????????????? | | ??????????????# #??????????????????????????????? | | ?????????????# ""?????????????????????????????? | | ?????????????# "#???????????????????????????? | | ?????????????# !"#???????????????????????????? | | ?????????????# < ""#???????????????????????????? | | ?????????????# !"#???????????????????????????? | | ?????????????# "#???????????????????????????? | | ?????????????# """#???????????????????????????? | | ?????????????##^^^####???????????????????????????? | | ??????????????#^^^#??????????????????????????????? | | ?????????????? ??????????????????????????????? | | ??????????????# ??????????????????????????????? | +----------------------------------------------------+ Best States ------------- Heat Dissipation 28 Energy Generation 10 Energy Capacity 450 Matter Stores 300 Matter Capacity 300 Sight Range 16 Terrain Scan Density 10 Power Shielding 33 Evasion (%) 62 Recoil Reduction 2 Item Schematics ----------------- Lgt. EM Pulse Cannon | -9/Materials | Scanalyzed Robot Schematics ------------------ None Fabricated ------------ Nothing Alien Tech Used ----------------- None Achievements -------------- None Challenges ------------ None Game ------ Seed HardenedMyomerCoupler Manual? 0 Play Time 00:12:43 Cumulative 11.4 hours Start 2020.05.09 @ 16:44:07 End 2020.05.09 @ 16:55:13 Sessions 1 Manual Loads 0 Difficulty Rogue Special Mode None Game No. 27 Rogue 27 Adventurer 0 Explorer 0 Win Type - Total 0 Types 0/0/0/0/0/0/0 Lore% 2 Gallery% 11 Achievement% 9 Wizard Run 0 Options --------- ASCII 0 Keyboard 0 Movement Numpad Keybinds 0 Fullscreen 1 Font 18/SmallcapsGlow Map View 76x50 Tactical HUD 1 Map Filters NONE Filters NONE Steam 1 RUN: b21db9d3-863c-4a75-9195-0fb259429909